{"text_format":"3","workbook":"xlsx","n_sheets":4,"sheets":["Start","Bryllupsbudsjett","Klær–Fest–Musikk–Fotografering","Dekorasjon–Blomster–Gaver–Reise"],"not_rendered":{"charts":1,"defined_names":22},"read":"whole","date_system":"1900"}

{"sheet":"Start","index":0,"n_rows":7,"n_cols":2,"rows_kept":7}
[null,"OM DENNE MALEN"]
[null,"Bruk denne malen til å holde oversikt over bryllupsutgifter."]
[null,"Skriv inn beregnet og faktisk kostnader for ulike kategorier i separate regneark."]
[null,"Budsjettsammendrag og diagram for bryllup oppdateres automatisk."]
[null,"Obs! "]
[null,"Flere instruksjoner finnes i kolonne A i hvert regneark. Denne teksten er med hensikt skjult. Hvis du vil fjerne teksten, velger du kolonne A og deretter SLETT. Hvis du vil vise teksten, velger du kolonne A og endrer deretter skriftfarge."]
[null,"Hvis du vil finne ut mer om tabeller, trykker du på SKIFT og deretter på F10 i en tabell. Velg alternativet TABELL, og velg deretter ALTERNATIV TEKST."]

{"sheet":"Bryllupsbudsjett","index":1,"n_rows":19,"n_cols":6,"rows_kept":19,"merged":[[2,2,4,5],[18,2,42,5]]}
["Opprett et bryllupsbudsjett i dette regnearket. Skriv inn informasjon i tabellene i regnearkene Klær–Fest–Musikk–Fotografering og Dekorasjon–Blomster–Gaver–Reise for å oppdatere sammendrag og diagram i gjeldende regneark. Du finner nyttige instruksjoner om hvordan du bruker dette regnearket, i cellene i denne kolonnen. Bryllupsdatoetiketten finnes i celle C1.",null,"Bryllupsdato:"]
["Skriv inn bryllupsdato i celle C2. Gjenværende dager beregnes automatisk i celle E2.",null,{"$f":"TODAY()+365","v":"2019-12-27"},"Gjenstående dager:",{"$f":"C2-TODAY()","v":365}]
["Tittelen på dette regnearket finnes i celle C3. Neste instruksjon finnes i celle A6.",null,"Budsjettsammendrag"]
[]
[]
["Tabell for budsjettsammendrag som starter i celle C6 oppdateres automatisk. Neste instruksjon finnes i celle A19.",null,"KATEGORI","BEREGNET","FAKTISK","OVER/UNDER"]
[null,null,"Klær",{"$f":"Klær_totalt_beregnet","v":{"v":9490,"d":"9,490.00"}},{"$f":"Klær_totalt_faktisk","v":{"v":9770,"d":"9,770.00"}},{"$f":"Budsjettsammendrag[[#This Row],[BEREGNET]]-Budsjettsammendrag[[#This Row],[FAKTISK]]","v":{"v":-280,"d":"-280.00"}}]
[null,null,"Bryllupsfest",{"$f":"Bryllupsfest_totalt_beregnet","v":{"v":1050,"d":"1,050.00"}},{"$f":"Bryllupsfest_totalt_faktisk","v":{"v":928,"d":"928.00"}},{"$f":"Budsjettsammendrag[[#This Row],[BEREGNET]]-Budsjettsammendrag[[#This Row],[FAKTISK]]","v":{"v":122,"d":"122.00"}}]
[null,null,"Musikk",{"$f":"Musikkunderholdning_totalt_beregnet","v":{"v":600,"d":"600.00"}},{"$f":"Musikkunderholdning_totalt_faktisk","v":{"v":400,"d":"400.00"}},{"$f":"Budsjettsammendrag[[#This Row],[BEREGNET]]-Budsjettsammendrag[[#This Row],[FAKTISK]]","v":{"v":200,"d":"200.00"}}]
[null,null,"Utskrift",{"$f":"Brevpapir_for_utskrift_beregnet","v":{"v":935,"d":"935.00"}},{"$f":"Brevpapir_for_utskrift_faktisk","v":{"v":870,"d":"870.00"}},{"$f":"Budsjettsammendrag[[#This Row],[BEREGNET]]-Budsjettsammendrag[[#This Row],[FAKTISK]]","v":{"v":65,"d":"65.00"}}]
[null,null,"Fotografering",{"$f":"Fotografering_totalt_beregnet","v":{"v":1625,"d":"1,625.00"}},{"$f":"Fotografering_totalt_faktisk","v":{"v":1575,"d":"1,575.00"}},{"$f":"Budsjettsammendrag[[#This Row],[BEREGNET]]-Budsjettsammendrag[[#This Row],[FAKTISK]]","v":{"v":50,"d":"50.00"}}]
[null,null,"Dekorasjoner",{"$f":"Dekorasjoner_totalt_beregnet","v":{"v":700,"d":"700.00"}},{"$f":"Dekorasjoner_totalt_faktisk","v":{"v":720,"d":"720.00"}},{"$f":"Budsjettsammendrag[[#This Row],[BEREGNET]]-Budsjettsammendrag[[#This Row],[FAKTISK]]","v":{"v":-20,"d":"-20.00"}}]
[null,null,"Blomster",{"$f":"Blomster_totalt_beregnet","v":{"v":900,"d":"900.00"}},{"$f":"Blomster_totalt_faktisk","v":{"v":850,"d":"850.00"}},{"$f":"Budsjettsammendrag[[#This Row],[BEREGNET]]-Budsjettsammendrag[[#This Row],[FAKTISK]]","v":{"v":50,"d":"50.00"}}]
[null,null,"Gaver",{"$f":"Gaver_totalt_beregnet","v":{"v":1345,"d":"1,345.00"}},{"$f":"Gaver_totalt_faktisk","v":{"v":1075,"d":"1,075.00"}},{"$f":"Budsjettsammendrag[[#This Row],[BEREGNET]]-Budsjettsammendrag[[#This Row],[FAKTISK]]","v":{"v":270,"d":"270.00"}}]
[null,null,"Reise",{"$f":"Reisetransport_totalt_beregnet","v":{"v":100,"d":"100.00"}},{"$f":"Reisetransport_totalt_faktisk","v":{"v":165,"d":"165.00"}},{"$f":"Budsjettsammendrag[[#This Row],[BEREGNET]]-Budsjettsammendrag[[#This Row],[FAKTISK]]","v":{"v":-65,"d":"-65.00"}}]
[null,null,"Annet",{"$f":"Andre_utgifter_totalt_beregnet","v":{"v":885,"d":"885.00"}},{"$f":"Andre_utgifter_totalt_faktisk","v":{"v":1021,"d":"1,021.00"}},{"$f":"Budsjettsammendrag[[#This Row],[BEREGNET]]-Budsjettsammendrag[[#This Row],[FAKTISK]]","v":{"v":-136,"d":"-136.00"}}]
[null,null,"Totale utgifter",{"$f":"SUBTOTAL(109,Budsjettsammendrag[BEREGNET])","v":{"v":17630,"d":"17,630.00"}},{"$f":"SUBTOTAL(109,Budsjettsammendrag[FAKTISK])","v":{"v":17374,"d":"17,374.00"}},{"$f":"SUBTOTAL(109,Budsjettsammendrag[OVER/UNDER])","v":{"v":256,"d":"256.00"}}]
[]
["Sektordiagrammet i celle C19 oppdateres automatisk.",null,"Sektordiagram som viser kostnadsprosenten for hver kategori finnes i denne cellen."]

{"sheet":"Klær–Fest–Musikk–Fotografering","index":2,"n_rows":56,"n_cols":6,"rows_kept":56,"merged":[[16,1,16,4],[28,1,28,4],[29,1,29,4],[35,1,35,4],[48,1,48,4]]}
["Skriv inn beregnet og faktisk kostnader for hver kategori i de respektive tabellene i dette regnearket. Kostnader over eller under beregnes automatisk. Klær-etiketten finnes i cellen til høyre. Du finner nyttige instruksjoner om hvordan du bruker dette regnearket, i cellene i denne kolonnen. Trykk på PIL NED for å komme i gang.","Klær",{"$nulls":3}," "]
[" Skriv inn informasjon i tabellen Klær, som starter i cellen til høyre. Neste instruksjon finnes i celle A18.","KATEGORI","BEREGNET","FAKTISK","OVER/UNDER"," "]
[null,"Forlovelsesring(er)",{"v":1500,"d":"1,500.00"},{"v":1500,"d":"1,500.00"},{"$f":"Klær–Fest–Musikk–Fotografering!$C3-Klær–Fest–Musikk–Fotografering!$D3","v":{"v":0,"d":"0.00"}}]
[null,"Kommende ektefelle 1 ring",{"v":2000,"d":"2,000.00"},{"v":2300,"d":"2,300.00"},{"$f":"Klær–Fest–Musikk–Fotografering!$C4-Klær–Fest–Musikk–Fotografering!$D4","v":{"v":-300,"d":"-300.00 "}}]
[null,"Kommende ektefelle 1 brudekjole/smoking",{"v":3000,"d":"3,000.00"},{"v":2750,"d":"2,750.00"},{"$f":"Klær–Fest–Musikk–Fotografering!$C5-Klær–Fest–Musikk–Fotografering!$D5","v":{"v":250,"d":"250.00"}}]
[null,"Kommende ektefelle 1 slør/hodepynt",{"v":500,"d":"500.00"},{"v":500,"d":"500.00"},{"$f":"Klær–Fest–Musikk–Fotografering!$C6-Klær–Fest–Musikk–Fotografering!$D6","v":{"v":0,"d":"0.00"}}]
[null,"Kommende ektefelle 1 sko",{"v":350,"d":"350.00"},{"v":300,"d":"300.00"},{"$f":"Klær–Fest–Musikk–Fotografering!$C7-Klær–Fest–Musikk–Fotografering!$D7","v":{"v":50,"d":"50.00"}}]
[null,"Kommende ektefelle 1 smykker",{"v":400,"d":"400.00"},{"v":550,"d":"550.00"},{"$f":"Klær–Fest–Musikk–Fotografering!$C8-Klær–Fest–Musikk–Fotografering!$D8","v":{"v":-150,"d":"-150.00 "}}]
[null,"Kommende ektefelle 1 strømper",{"v":20,"d":"20.00"},{"v":20,"d":"20.00"},{"$f":"Klær–Fest–Musikk–Fotografering!$C9-Klær–Fest–Musikk–Fotografering!$D9","v":{"v":0,"d":"0.00"}}]
[null,"Kommende ektefelle 2 ring",{"v":300,"d":"300.00"},{"v":250,"d":"250.00"},{"$f":"Klær–Fest–Musikk–Fotografering!$C10-Klær–Fest–Musikk–Fotografering!$D10","v":{"v":50,"d":"50.00"}}]
[null,"Kommende ektefelle 2 brudekjole/smoking",{"v":300,"d":"300.00"},{"v":350,"d":"350.00"},{"$f":"Klær–Fest–Musikk–Fotografering!$C11-Klær–Fest–Musikk–Fotografering!$D11","v":{"v":-50,"d":"-50.00 "}}]
[null,"Kommende ektefelle 2 slør/hodepynt",{"v":500,"d":"500.00"},{"v":500,"d":"500.00"},{"$f":"Klær–Fest–Musikk–Fotografering!$C12-Klær–Fest–Musikk–Fotografering!$D12","v":{"v":0,"d":"0.00"}}]
[null,"Kommende ektefelle 2 sko",{"v":200,"d":"200.00"},{"v":175,"d":"175.00"},{"$f":"Klær–Fest–Musikk–Fotografering!$C13-Klær–Fest–Musikk–Fotografering!$D13","v":{"v":25,"d":"25.00"}}]
[null,"Kommende ektefelle 2 smykker",{"v":400,"d":"400.00"},{"v":550,"d":"550.00"},{"$f":"Klær–Fest–Musikk–Fotografering!$C14-Klær–Fest–Musikk–Fotografering!$D14","v":{"v":-150,"d":"-150.00 "}}]
[null,"Kommende ektefelle 2 strømper",{"v":20,"d":"20.00"},{"v":25,"d":"25.00"},{"$f":"Klær–Fest–Musikk–Fotografering!$C15-Klær–Fest–Musikk–Fotografering!$D15","v":{"v":-5,"d":"-5.00 "}}]
[null,"Klær totalt",{"$f":"SUBTOTAL(109,Klær[BEREGNET])","v":{"v":9490,"d":"9,490.00"}},{"$f":"SUBTOTAL(109,Klær[FAKTISK])","v":{"v":9770,"d":"9,770.00"}},{"$f":"SUBTOTAL(109,Klær[OVER/UNDER])","v":{"v":-280,"d":"-280.00 "}}]
[]
["Bryllupsfest-etiketten finnes i cellen til høyre.","Bryllupsfest*"]
["Skriv inn kostnadene for bryllupsfest, ekskludert kostnader for underholdning og dekorasjoner, i tabellen som starter i cellen til høyre. Neste instruksjon finnes i celle A31.","KATEGORI","BEREGNET","FAKTISK","OVER/UNDER"]
[null,"Leie av lokaler",{"v":200,"d":"200.00"},{"v":150,"d":"150.00"},{"$f":"Klær–Fest–Musikk–Fotografering!$C20-Klær–Fest–Musikk–Fotografering!$D20","v":{"v":50,"d":"50.00"}}]
[null,"Bord og stoler",{"v":100,"d":"100.00"},{"v":50,"d":"50.00"},{"$f":"Klær–Fest–Musikk–Fotografering!$C21-Klær–Fest–Musikk–Fotografering!$D21","v":{"v":50,"d":"50.00"}}]
[null,"Mat",{"v":0,"d":"0.00"},{"v":0,"d":"0.00"},{"$f":"Klær–Fest–Musikk–Fotografering!$C22-Klær–Fest–Musikk–Fotografering!$D22","v":{"v":0,"d":"0.00"}}]
[null,"Drikke",{"v":0,"d":"0.00"},{"v":0,"d":"0.00"},{"$f":"Klær–Fest–Musikk–Fotografering!$C23-Klær–Fest–Musikk–Fotografering!$D23","v":{"v":0,"d":"0.00"}}]
[null,"Duker",{"v":0,"d":"0.00"},{"v":0,"d":"0.00"},{"$f":"Klær–Fest–Musikk–Fotografering!$C24-Klær–Fest–Musikk–Fotografering!$D24","v":{"v":0,"d":"0.00"}}]
[null,"Kake",{"v":700,"d":"700.00"},{"v":700,"d":"700.00"},{"$f":"Klær–Fest–Musikk–Fotografering!$C25-Klær–Fest–Musikk–Fotografering!$D25","v":{"v":0,"d":"0.00"}}]
[null,"Gaver til gjester",{"v":50,"d":"50.00"},{"v":28,"d":"28.00"},{"$f":"Klær–Fest–Musikk–Fotografering!$C26-Klær–Fest–Musikk–Fotografering!$D26","v":{"v":22,"d":"22.00"}}]
[null,"Ansatte og tips",{"v":0,"d":"0.00"},{"v":0,"d":"0.00"},{"$f":"Klær–Fest–Musikk–Fotografering!$C27-Klær–Fest–Musikk–Fotografering!$D27","v":{"v":0,"d":"0.00"}}]
[null,"Bryllupsfest totalt",{"$f":"SUBTOTAL(109,Bryllupsfest[BEREGNET])","v":{"v":1050,"d":"1,050.00"}},{"$f":"SUBTOTAL(109,Bryllupsfest[FAKTISK])","v":{"v":928,"d":"928.00"}},{"$f":"SUBTOTAL(109,Bryllupsfest[OVER/UNDER])","v":{"v":122,"d":"122.00"}}]
[null,"* Ekskluderer underholdning og dekorasjoner"]
[]
["Etiketten for musikk eller underholdning finnes i cellen til høyre.","Musikk/underholdning"]
["Skriv inn informasjon i tabellen Musikk, som starter i cellen til høyre. Neste instruksjon finnes i celle A37.","KATEGORI","BEREGNET","FAKTISK","OVER/UNDER"]
[null,"Musikere til vielsen",{"v":400,"d":"400.00"},{"v":400,"d":"400.00"},{"$f":"Klær–Fest–Musikk–Fotografering!$C33-Klær–Fest–Musikk–Fotografering!$D33","v":{"v":0,"d":"0.00"}}]
[null,"Band/DJ til bryllupsfesten",{"v":200,"d":"200.00"},{"v":0,"d":"0.00"},{"$f":"Klær–Fest–Musikk–Fotografering!$C34-Klær–Fest–Musikk–Fotografering!$D34","v":{"v":200,"d":"200.00"}}]
[null,"Musikk/underholdning totalt",{"$f":"SUBTOTAL(109,Musikk[BEREGNET])","v":{"v":600,"d":"600.00"}},{"$f":"SUBTOTAL(109,Musikk[FAKTISK])","v":{"v":400,"d":"400.00"}},{"$f":"SUBTOTAL(109,Musikk[OVER/UNDER])","v":{"v":200,"d":"200.00"}}]
[]
["Trykking/skrivepapir finnes i cellen til høyre.","Trykking/skrivepapir"]
["Skriv inn informasjon i tabellen Trykking, som starter i cellen til høyre. Neste instruksjon finnes i celle A50.","KATEGORI","BEREGNET","FAKTISK","OVER/UNDER"]
[null,"Invitasjoner",{"v":500,"d":"500.00"},{"v":450,"d":"450.00"},{"$f":"Klær–Fest–Musikk–Fotografering!$C39-Klær–Fest–Musikk–Fotografering!$D39","v":{"v":50,"d":"50.00"}}]
[null,"Kunngjøringer",{"v":200,"d":"200.00"},{"v":175,"d":"175.00"},{"$f":"Klær–Fest–Musikk–Fotografering!$C40-Klær–Fest–Musikk–Fotografering!$D40","v":{"v":25,"d":"25.00"}}]
[null,"Takkekort",{"v":100,"d":"100.00"},{"v":100,"d":"100.00"},{"$f":"Klær–Fest–Musikk–Fotografering!$C41-Klær–Fest–Musikk–Fotografering!$D41","v":{"v":0,"d":"0.00"}}]
[null,"Personlig skrivepapir",{"v":0,"d":"0.00"},{"v":0,"d":"0.00"},{"$f":"Klær–Fest–Musikk–Fotografering!$C42-Klær–Fest–Musikk–Fotografering!$D42","v":{"v":0,"d":"0.00"}}]
[null,"Gjestebok",{"v":25,"d":"25.00"},{"v":25,"d":"25.00"},{"$f":"Klær–Fest–Musikk–Fotografering!$C43-Klær–Fest–Musikk–Fotografering!$D43","v":{"v":0,"d":"0.00"}}]
[null,"Programmer",{"v":75,"d":"75.00"},{"v":80,"d":"80.00"},{"$f":"Klær–Fest–Musikk–Fotografering!$C44-Klær–Fest–Musikk–Fotografering!$D44","v":{"v":-5,"d":"-5.00 "}}]
[null,"Servietter",{"v":35,"d":"35.00"},{"v":40,"d":"40.00"},{"$f":"Klær–Fest–Musikk–Fotografering!$C45-Klær–Fest–Musikk–Fotografering!$D45","v":{"v":-5,"d":"-5.00 "}}]
[null,"Fyrstikkesker",{"v":0,"d":"0.00"},{"v":0,"d":"0.00"},{"$f":"Klær–Fest–Musikk–Fotografering!$C46-Klær–Fest–Musikk–Fotografering!$D46","v":{"v":0,"d":"0.00"}}]
[null,"Kalligrafi",{"v":0,"d":"0.00"},{"v":0,"d":"0.00"},{"$f":"Klær–Fest–Musikk–Fotografering!$C47-Klær–Fest–Musikk–Fotografering!$D47","v":{"v":0,"d":"0.00"}}]
[null,"Trykking/skrivepapir totalt",{"$f":"SUBTOTAL(109,Trykking[BEREGNET])","v":{"v":935,"d":"935.00"}},{"$f":"SUBTOTAL(109,Trykking[FAKTISK])","v":{"v":870,"d":"870.00"}},{"$f":"SUBTOTAL(109,Trykking[OVER/UNDER])","v":{"v":65,"d":"65.00"}}]
[]
["Fotografering-etiketten finnes i cellen til høyre.","Fotografering"]
["Skriv inn informasjon i tabellen Fotografering, som starter i cellen til høyre.","KATEGORI","BEREGNET","FAKTISK","OVER/UNDER"]
[null,"Offisielle bilder",{"v":1300,"d":"1,300.00"},{"v":1300,"d":"1,300.00"},{"$f":"Klær–Fest–Musikk–Fotografering!$C52-Klær–Fest–Musikk–Fotografering!$D52","v":{"v":0,"d":"0.00"}}]
[null,"Ekstra kopier",{"v":25,"d":"25.00"},{"v":25,"d":"25.00"},{"$f":"Klær–Fest–Musikk–Fotografering!$C53-Klær–Fest–Musikk–Fotografering!$D53","v":{"v":0,"d":"0.00"}}]
[null,"Fotoalbum",{"v":100,"d":"100.00"},{"v":100,"d":"100.00"},{"$f":"Klær–Fest–Musikk–Fotografering!$C54-Klær–Fest–Musikk–Fotografering!$D54","v":{"v":0,"d":"0.00"}}]
[null,"Video",{"v":200,"d":"200.00"},{"v":150,"d":"150.00"},{"$f":"Klær–Fest–Musikk–Fotografering!$C55-Klær–Fest–Musikk–Fotografering!$D55","v":{"v":50,"d":"50.00"}}]
[null,"Fotografering totalt",{"$f":"SUBTOTAL(109,Fotografering[BEREGNET])","v":{"v":1625,"d":"1,625.00"}},{"$f":"SUBTOTAL(109,Fotografering[FAKTISK])","v":{"v":1575,"d":"1,575.00"}},{"$f":"SUBTOTAL(109,Fotografering[OVER/UNDER])","v":{"v":50,"d":"50.00"}}]

{"sheet":"Dekorasjon–Blomster–Gaver–Reise","index":3,"n_rows":48,"n_cols":5,"rows_kept":48,"merged":[[8,1,8,4],[9,1,9,4],[18,1,18,4],[27,1,27,4],[34,1,34,4]]}
["Skriv inn beregnet og faktisk kostnader for hver kategori i de respektive tabellene i dette regnearket. Kostnader over eller under beregnes automatisk. Dekorasjoner-etiketten finnes i cellen til høyre. Du finner nyttige instruksjoner om hvordan du bruker dette regnearket, i cellene i denne kolonnen. Trykk på PIL NED for å komme i gang.","Dekorasjoner*"]
["Skriv inn kostnadene for dekorasjoner, ekskludert kostnader for blomster, i tabellen som starter i cellen til høyre. Neste instruksjon finnes i celle A11.","KATEGORI","BEREGNET","FAKTISK","OVER/UNDER"]
[null,"Sløyfer til sitteplasser",{"v":0,"d":"0.00"},{"v":0,"d":"0.00"},{"$f":"Dekorasjon–Blomster–Gaver–Reise!$C3-Dekorasjon–Blomster–Gaver–Reise!$D3","v":{"v":0,"d":"0.00"}}]
[null,"Bordpynt",{"v":300,"d":"300.00"},{"v":320,"d":"320.00"},{"$f":"Dekorasjon–Blomster–Gaver–Reise!$C4-Dekorasjon–Blomster–Gaver–Reise!$D4","v":{"v":-20,"d":"-20.00 "}}]
[null,"Lys",{"v":100,"d":"100.00"},{"v":75,"d":"75.00"},{"$f":"Dekorasjon–Blomster–Gaver–Reise!$C5-Dekorasjon–Blomster–Gaver–Reise!$D5","v":{"v":25,"d":"25.00"}}]
[null,"Belysning",{"v":100,"d":"100.00"},{"v":75,"d":"75.00"},{"$f":"Dekorasjon–Blomster–Gaver–Reise!$C6-Dekorasjon–Blomster–Gaver–Reise!$D6","v":{"v":25,"d":"25.00"}}]
[null,"Ballonger",{"v":200,"d":"200.00"},{"v":250,"d":"250.00"},{"$f":"Dekorasjon–Blomster–Gaver–Reise!$C7-Dekorasjon–Blomster–Gaver–Reise!$D7","v":{"v":-50,"d":"-50.00 "}}]
[null,"Dekorasjoner totalt",{"$f":"SUBTOTAL(109,Dekorasjoner[BEREGNET])","v":{"v":700,"d":"700.00"}},{"$f":"SUBTOTAL(109,Dekorasjoner[FAKTISK])","v":{"v":720,"d":"720.00"}},{"$f":"SUBTOTAL(109,Dekorasjoner[OVER/UNDER])","v":{"v":-20,"d":"-20.00 "}}]
[null,"* Ekskluderer blomster"]
[]
["Blomster-etiketten finnes i cellen til høyre.","Blomster"]
["Skriv inn informasjon i tabellen Blomster, som starter i cellen til høyre. Neste instruksjon finnes i celle A20.","KATEGORI","BEREGNET","FAKTISK","OVER/UNDER"]
[null,"Buketter",{"v":500,"d":"500.00"},{"v":450,"d":"450.00"},{"$f":"Dekorasjon–Blomster–Gaver–Reise!$C13-Dekorasjon–Blomster–Gaver–Reise!$D13","v":{"v":50,"d":"50.00"}}]
[null,"Knapphullsblomster",{"v":0,"d":"0.00"},{"v":0,"d":"0.00"},{"$f":"Dekorasjon–Blomster–Gaver–Reise!$C14-Dekorasjon–Blomster–Gaver–Reise!$D14","v":{"v":0,"d":"0.00"}}]
[null,"Brystbuketter",{"v":0,"d":"0.00"},{"v":0,"d":"0.00"},{"$f":"Dekorasjon–Blomster–Gaver–Reise!$C15-Dekorasjon–Blomster–Gaver–Reise!$D15","v":{"v":0,"d":"0.00"}}]
[null,"Vielse",{"v":400,"d":"400.00"},{"v":400,"d":"400.00"},{"$f":"Dekorasjon–Blomster–Gaver–Reise!$C16-Dekorasjon–Blomster–Gaver–Reise!$D16","v":{"v":0,"d":"0.00"}}]
[null,"Bryllupsfest",{"v":0,"d":"0.00"},{"v":0,"d":"0.00"},{"$f":"Dekorasjon–Blomster–Gaver–Reise!$C17-Dekorasjon–Blomster–Gaver–Reise!$D17","v":{"v":0,"d":"0.00"}}]
[null,"Blomster totalt",{"$f":"SUBTOTAL(109,Blomster[BEREGNET])","v":{"v":900,"d":"900.00"}},{"$f":"SUBTOTAL(109,Blomster[FAKTISK])","v":{"v":850,"d":"850.00"}},{"$f":"SUBTOTAL(109,Blomster[OVER/UNDER])","v":{"v":50,"d":"50.00"}}]
[]
["Gaver-etiketten finnes i cellen til høyre.","Gaver"]
["Skriv inn informasjon i tabellen Gaver, som starter i cellen til høyre. Neste instruksjon finnes i celle A29.","KATEGORI","BEREGNET","FAKTISK","OVER/UNDER"]
[null,"Deltakere",{"v":1000,"d":"1,000.00"},{"v":400,"d":"400.00"},{"$f":"Dekorasjon–Blomster–Gaver–Reise!$C22-Dekorasjon–Blomster–Gaver–Reise!$D22","v":{"v":600,"d":"600.00"}}]
[null,"Kommende ektefelle 1",{"v":150,"d":"150.00"},{"v":200,"d":"200.00"},{"$f":"Dekorasjon–Blomster–Gaver–Reise!$C23-Dekorasjon–Blomster–Gaver–Reise!$D23","v":{"v":-50,"d":"-50.00 "}}]
[null,"Kommende ektefelle 2",{"v":150,"d":"150.00"},{"v":200,"d":"200.00"},{"$f":"Dekorasjon–Blomster–Gaver–Reise!$C24-Dekorasjon–Blomster–Gaver–Reise!$D24","v":{"v":-50,"d":"-50.00 "}}]
[null,"Foreldre",{"v":25,"d":"25.00"},{"v":25,"d":"25.00"},{"$f":"Dekorasjon–Blomster–Gaver–Reise!$C25-Dekorasjon–Blomster–Gaver–Reise!$D25","v":{"v":0,"d":"0.00"}}]
[null,"Opplesere / andre deltakere",{"v":20,"d":"20.00"},{"v":250,"d":"250.00"},{"$f":"Dekorasjon–Blomster–Gaver–Reise!$C26-Dekorasjon–Blomster–Gaver–Reise!$D26","v":{"v":-230,"d":"-230.00 "}}]
[null,"Gaver totalt",{"$f":"SUBTOTAL(109,Gaver[BEREGNET])","v":{"v":1345,"d":"1,345.00"}},{"$f":"SUBTOTAL(109,Gaver[FAKTISK])","v":{"v":1075,"d":"1,075.00"}},{"$f":"SUBTOTAL(109,Gaver[OVER/UNDER])","v":{"v":270,"d":"270.00"}}]
[]
["Etiketten for reise og transport finnes i cellen til høyre.","Reise/transport"]
["Skriv inn informasjon i tabellen Reise, som starter i cellen til høyre. Neste instruksjon finnes i celle A36.","KATEGORI","BEREGNET","FAKTISK","OVER/UNDER"]
[null,"Limousiner/kjøretøy",{"v":100,"d":"100.00"},{"v":125,"d":"125.00"},{"$f":"Dekorasjon–Blomster–Gaver–Reise!$C31-Dekorasjon–Blomster–Gaver–Reise!$D31","v":{"v":-25,"d":"-25.00 "}}]
[null,"Parkering",{"v":0,"d":"0.00"},{"v":40,"d":"40.00"},{"$f":"Dekorasjon–Blomster–Gaver–Reise!$C32-Dekorasjon–Blomster–Gaver–Reise!$D32","v":{"v":-40,"d":"-40.00 "}}]
[null,"Drosjer",{"v":0,"d":"0.00"},{"v":0,"d":"0.00"},{"$f":"Dekorasjon–Blomster–Gaver–Reise!$C33-Dekorasjon–Blomster–Gaver–Reise!$D33","v":{"v":0,"d":"0.00"}}]
[null,"Reise/transport totalt",{"$f":"SUBTOTAL(109,Reise[BEREGNET])","v":{"v":100,"d":"100.00"}},{"$f":"SUBTOTAL(109,Reise[FAKTISK])","v":{"v":165,"d":"165.00"}},{"$f":"SUBTOTAL(109,Reise[OVER/UNDER])","v":{"v":-65,"d":"-65.00 "}}]
[]
["Etiketten for andre utgifter finnes i cellen til høyre.","Andre utgifter"]
["Skriv inn informasjon i tabellen Andre utgifter, som starter i cellen til høyre.","KATEGORI","BEREGNET","FAKTISK","OVER/UNDER"]
[null,"Forrettende prest",{"v":0,"d":"0.00"},{"v":0,"d":"0.00"},{"$f":"Dekorasjon–Blomster–Gaver–Reise!$C38-Dekorasjon–Blomster–Gaver–Reise!$D38","v":{"v":0,"d":"0.00"}}]
[null,"Avgift for kirke/vielsessted",{"v":40,"d":"40.00"},{"v":55,"d":"55.00"},{"$f":"Dekorasjon–Blomster–Gaver–Reise!$C39-Dekorasjon–Blomster–Gaver–Reise!$D39","v":{"v":-15,"d":"-15.00 "}}]
[null,"Bryllupskoordinator",{"v":0,"d":"0.00"},{"v":0,"d":"0.00"},{"$f":"Dekorasjon–Blomster–Gaver–Reise!$C40-Dekorasjon–Blomster–Gaver–Reise!$D40","v":{"v":0,"d":"0.00"}}]
[null,"Generalprøve for middag",{"v":450,"d":"450.00"},{"v":450,"d":"450.00"},{"$f":"Dekorasjon–Blomster–Gaver–Reise!$C41-Dekorasjon–Blomster–Gaver–Reise!$D41","v":{"v":0,"d":"0.00"}}]
[null,"Forlovelsesfest",{"v":20,"d":"20.00"},{"v":50,"d":"50.00"},{"$f":"Dekorasjon–Blomster–Gaver–Reise!$C42-Dekorasjon–Blomster–Gaver–Reise!$D42","v":{"v":-30,"d":"-30.00 "}}]
[null,"Gavefest for bruden",{"v":30,"d":"30.00"},{"v":20,"d":"20.00"},{"$f":"Dekorasjon–Blomster–Gaver–Reise!$C43-Dekorasjon–Blomster–Gaver–Reise!$D43","v":{"v":10,"d":"10.00"}}]
[null,"Skjønnhetssalong",{"v":45,"d":"45.00"},{"v":46,"d":"46.00"},{"$f":"Dekorasjon–Blomster–Gaver–Reise!$C44-Dekorasjon–Blomster–Gaver–Reise!$D44","v":{"v":-1,"d":"-1.00 "}}]
[null,"Utdrikningslag for brud og brudgom",{"v":0,"d":"0.00"},{"v":0,"d":"0.00"},{"$f":"Dekorasjon–Blomster–Gaver–Reise!$C45-Dekorasjon–Blomster–Gaver–Reise!$D45","v":{"v":0,"d":"0.00"}}]
[null,"Brunsj",{"v":300,"d":"300.00"},{"v":400,"d":"400.00"},{"$f":"Dekorasjon–Blomster–Gaver–Reise!$C46-Dekorasjon–Blomster–Gaver–Reise!$D46","v":{"v":-100,"d":"-100.00 "}}]
[null,"Hotellrom",{"v":0,"d":"0.00"},{"v":0,"d":"0.00"},{"$f":"Dekorasjon–Blomster–Gaver–Reise!$C47-Dekorasjon–Blomster–Gaver–Reise!$D47","v":{"v":0,"d":"0.00"}}]
[null,"Andre utgifter totalt",{"$f":"SUBTOTAL(109,AndreUtgifter[BEREGNET])","v":{"v":885,"d":"885.00"}},{"$f":"SUBTOTAL(109,AndreUtgifter[FAKTISK])","v":{"v":1021,"d":"1,021.00"}},{"$f":"SUBTOTAL(109,AndreUtgifter[OVER/UNDER])","v":{"v":-136,"d":"-136.00 "}}]